[Event "Late-Titled-Tuesday-Blitz-September-05-2023"]
[Site "Chess.com"]
[Date "2023.09.05"]
[Round "6"]
[White "artin10862"]
[Black "karinachess1"]
[Result "1-0"]
[WhiteElo "2925"]
[BlackElo "2561"]
[TimeControl "180+1"]
[EndTime "15:03:50 PDT"]
[Termination "artin10862 won by resignation"]

1. d4 {[%clk 0:02:59.7]} 1... Nf6 {[%clk 0:02:57.7]} 2. c4 {[%clk 0:03:00.3]}
2... g6 {[%clk 0:02:57.5]} 3. Nc3 {[%clk 0:02:57.9]} 3... Bg7 {[%clk 0:02:58.1]}
4. e4 {[%clk 0:02:56.9]} 4... O-O {[%clk 0:02:58.7]} 5. Nf3 {[%clk 0:02:51.7]}
5... d6 {[%clk 0:02:59.1]} 6. Be2 {[%clk 0:02:50.3]} 6... e5 {[%clk 0:02:58.9]}
7. d5 {[%clk 0:02:50.1]} 7... a5 {[%clk 0:02:58.5]} 8. Bg5 {[%clk 0:02:49.1]}
8... h6 {[%clk 0:02:57.8]} 9. Bh4 {[%clk 0:02:48.3]} 9... Qe8 {[%clk 0:02:54]}
10. Nd2 {[%clk 0:02:43.5]} 10... Ra6 {[%clk 0:02:50]} 11. c5 {[%clk 0:02:38]}
11... Ra8 {[%clk 0:02:49.5]} 12. cxd6 {[%clk 0:02:21.3]} 12... cxd6 {[%clk
0:02:50.4]} 13. Nc4 {[%clk 0:02:16.5]} 13... Ra6 {[%clk 0:02:44.1]} 14. a4
{[%clk 0:02:07.6]} 14... Bd7 {[%clk 0:02:38.6]} 15. O-O {[%clk 0:02:03.6]} 15...
Nh7 {[%clk 0:02:33.9]} 16. Nb5 {[%clk 0:01:59.3]} 16... Bxb5 {[%clk 0:02:17.4]}
17. axb5 {[%clk 0:01:55.2]} 17... Ra8 {[%clk 0:02:18.3]} 18. Nxd6 {[%clk
0:01:46]} 18... Qd7 {[%clk 0:02:18.6]} 19. Nc4 {[%clk 0:01:44.9]} 19... Qxb5
{[%clk 0:02:10.5]} 20. Be7 {[%clk 0:01:41.8]} 20... Nd7 {[%clk 0:02:06.3]} 21.
Nxe5 {[%clk 0:01:38.9]} 21... Qxb2 {[%clk 0:02:00.4]} 22. Nxd7 {[%clk 0:01:38]}
22... Rfe8 {[%clk 0:02:00.2]} 23. Rb1 {[%clk 0:01:35.1]} 23... Qc3 {[%clk
0:01:52.7]} 24. d6 {[%clk 0:01:31.7]} 24... a4 {[%clk 0:01:51]} 25. Nb6 {[%clk
0:01:27.4]} 25... Ra5 {[%clk 0:01:49.8]} 26. d7 {[%clk 0:01:24.3]} 1-0

[Event "Late-Titled-Tuesday-Blitz-September-05-2023"]
[Site "Chess.com"]
[Date "2023.09.05"]
[Round "6"]
[White "The_Straightforward_Rook"]
[Black "Quattroporte300"]
[Result "1-0"]
[WhiteElo "2502"]
[BlackElo "2389"]
[TimeControl "180+1"]
[EndTime "15:03:54 PDT"]
[Termination "The_Straightforward_Rook won by resignation"]

1. d4 {[%clk 0:02:56.5]} 1... Nf6 {[%clk 0:02:58.1]} 2. c4 {[%clk 0:02:56.2]}
2... g6 {[%clk 0:02:57]} 3. h4 {[%clk 0:02:55.8]} 3... Bg7 {[%clk 0:02:56.2]} 4.
Nc3 {[%clk 0:02:54.9]} 4... d5 {[%clk 0:02:50.3]} 5. h5 {[%clk 0:02:47.8]} 5...
dxc4 {[%clk 0:02:48.6]} 6. h6 {[%clk 0:02:46.8]} 6... Bf8 {[%clk 0:02:47.5]} 7.
e4 {[%clk 0:02:46.4]} 7... c5 {[%clk 0:02:41.6]} 8. Bxc4 {[%clk 0:02:28.8]} 8...
cxd4 {[%clk 0:02:32.6]} 9. e5 {[%clk 0:02:28.6]} 9... dxc3 {[%clk 0:02:13.9]}
10. Bxf7+ {[%clk 0:02:28.1]} 10... Kxf7 {[%clk 0:02:10.2]} 11. Qxd8 {[%clk
0:02:27.9]} 11... Nc6 {[%clk 0:02:04.1]} 12. Qc7 {[%clk 0:02:17.8]} 12... Nd5
{[%clk 0:01:58.6]} 13. e6+ {[%clk 0:02:18.1]} 13... Kxe6 {[%clk 0:01:50]} 14.
Qg3 {[%clk 0:02:15.6]} 14... Nd4 {[%clk 0:01:43.2]} 15. Nf3 {[%clk 0:02:01.7]}
15... Nc2+ {[%clk 0:01:41.5]} 16. Kf1 {[%clk 0:02:01.9]} 16... Nxa1 {[%clk
0:01:41.7]} 17. Qe5+ {[%clk 0:01:59.4]} 17... Kd7 {[%clk 0:01:38.7]} 18. Qxd5+
{[%clk 0:01:51.2]} 18... Ke8 {[%clk 0:01:37.9]} 19. Ne5 {[%clk 0:01:45.2]} 19...
e6 {[%clk 0:01:33.6]} 20. Qb5+ {[%clk 0:01:44]} 20... Ke7 {[%clk 0:01:29]} 21.
Bg5+ {[%clk 0:01:43.3]} 21... Kd6 {[%clk 0:01:28.1]} 22. Nf7+ {[%clk 0:01:37.4]}
22... Kc7 {[%clk 0:01:25.3]} 23. Bf4+ {[%clk 0:01:37.2]} 1-0

[Event "Late-Titled-Tuesday-Blitz-September-05-2023"]
[Site "Chess.com"]
[Date "2023.09.05"]
[Round "6"]
[White "TheRigos"]
[Black "rasmussvane"]
[Result "0-1"]
[WhiteElo "2551"]
[BlackElo "2940"]
[TimeControl "180+1"]
[EndTime "15:03:59 PDT"]
[Termination "rasmussvane won by resignation"]

1. d4 {[%clk 0:02:56.5]} 1... d5 {[%clk 0:02:59.4]} 2. c4 {[%clk 0:02:52.3]}
2... e6 {[%clk 0:02:59.5]} 3. Nc3 {[%clk 0:02:50.1]} 3... h6 {[%clk 0:02:58.5]}
4. cxd5 {[%clk 0:02:47.9]} 4... exd5 {[%clk 0:02:59.4]} 5. Nf3 {[%clk
0:02:48.5]} 5... Nf6 {[%clk 0:02:58.9]} 6. Bf4 {[%clk 0:02:48.9]} 6... Bd6
{[%clk 0:02:58.6]} 7. Bxd6 {[%clk 0:02:49.4]} 7... Qxd6 {[%clk 0:02:59.1]} 8. e3
{[%clk 0:02:49.6]} 8... Bf5 {[%clk 0:02:52.4]} 9. Qb3 {[%clk 0:02:48.8]} 9...
Qb6 {[%clk 0:02:43.8]} 10. Qa3 {[%clk 0:02:23.8]} 10... Nbd7 {[%clk 0:02:37.9]}
11. Rc1 {[%clk 0:02:18.7]} 11... c6 {[%clk 0:02:36.5]} 12. Be2 {[%clk
0:01:52.8]} 12... a5 {[%clk 0:02:35.7]} 13. Na4 {[%clk 0:01:32.2]} 13... Qb4+
{[%clk 0:02:33]} 14. Qxb4 {[%clk 0:01:28.5]} 14... axb4 {[%clk 0:02:33.9]} 15.
b3 {[%clk 0:01:27.7]} 15... b5 {[%clk 0:02:25.9]} 16. Nc5 {[%clk 0:01:22.4]}
16... Nxc5 {[%clk 0:02:26.1]} 17. Rxc5 {[%clk 0:01:22.1]} 17... Rxa2 {[%clk
0:02:02.3]} 18. Rxc6 {[%clk 0:01:15.7]} 18... Ra1+ {[%clk 0:02:01.7]} 19. Bd1
{[%clk 0:01:08.7]} 19... Ne4 {[%clk 0:02:01.8]} 20. O-O {[%clk 0:00:45.3]} 20...
Nc3 {[%clk 0:02:01.1]} 21. Bc2 {[%clk 0:00:45.8]} 21... Ne2+ {[%clk 0:02:01.2]}
0-1

[Event "Late-Titled-Tuesday-Blitz-September-05-2023"]
[Site "Chess.com"]
[Date "2023.09.05"]
[Round "6"]
[White "Michalczak"]
[Black "KorolDimitriy75"]
[Result "1-0"]
[WhiteElo "2510"]
[BlackElo "2329"]
[TimeControl "180+1"]
[EndTime "15:03:59 PDT"]
[Termination "Michalczak won on time"]

1. e4 {[%clk 0:03:00.9]} 1... c5 {[%clk 0:02:59.8]} 2. c3 {[%clk 0:03:00.7]}
2... d5 {[%clk 0:02:59.6]} 3. exd5 {[%clk 0:03:01.1]} 3... Qxd5 {[%clk
0:03:00.4]} 4. Nf3 {[%clk 0:03:01.7]} 4... Nc6 {[%clk 0:03:00]} 5. Na3 {[%clk
0:03:02.2]} 5... Nf6 {[%clk 0:02:55.8]} 6. Bc4 {[%clk 0:03:02.2]} 6... Qd8
{[%clk 0:02:54.3]} 7. O-O {[%clk 0:03:01.9]} 7... e6 {[%clk 0:02:49.9]} 8. Qe2
{[%clk 0:03:01.3]} 8... Be7 {[%clk 0:02:48.5]} 9. Rd1 {[%clk 0:03:01.2]} 9...
O-O {[%clk 0:02:45.1]} 10. d4 {[%clk 0:03:01.4]} 10... cxd4 {[%clk 0:01:42.5]}
11. Nb5 {[%clk 0:03:00.8]} 11... a6 {[%clk 0:01:28.2]} 12. Nbxd4 {[%clk
0:03:00.9]} 12... Nxd4 {[%clk 0:01:15.2]} 13. Rxd4 {[%clk 0:03:01.8]} 13... Qe8
{[%clk 0:00:25.2]} 14. Ne5 {[%clk 0:02:55.7]} 14... b5 {[%clk 0:00:13.8]} 15.
Bd3 {[%clk 0:02:47.8]} 15... Bb7 {[%clk 0:00:13.8]} 16. Bd2 {[%clk 0:02:38.8]}
16... Rd8 {[%clk 0:00:13.2]} 17. Rh4 {[%clk 0:02:38]} 1-0

[Event "Late-Titled-Tuesday-Blitz-September-05-2023"]
[Site "Chess.com"]
[Date "2023.09.05"]
[Round "6"]
[White "sofaceindisguise"]
[Black "Sina_Movahed"]
[Result "0-1"]
[WhiteElo "2736"]
[BlackElo "2984"]
[TimeControl "180+1"]
[EndTime "15:04:01 PDT"]
[Termination "Sina_Movahed won by resignation"]

1. c4 {[%clk 0:02:56]} 1... Nf6 {[%clk 0:02:58.1]} 2. Nc3 {[%clk 0:02:54.3]}
2... g6 {[%clk 0:02:58.3]} 3. g3 {[%clk 0:02:52.9]} 3... Bg7 {[%clk 0:02:58]} 4.
Bg2 {[%clk 0:02:53.4]} 4... O-O {[%clk 0:02:58.9]} 5. Nf3 {[%clk 0:02:53.7]}
5... d6 {[%clk 0:02:59.8]} 6. O-O {[%clk 0:02:54.3]} 6... e5 {[%clk 0:03:00]} 7.
d3 {[%clk 0:02:54.9]} 7... Re8 {[%clk 0:03:00.5]} 8. Rb1 {[%clk 0:02:55.6]} 8...
c6 {[%clk 0:02:58.5]} 9. b4 {[%clk 0:02:49.9]} 9... a6 {[%clk 0:02:58.5]} 10. a4
{[%clk 0:02:49.3]} 10... h6 {[%clk 0:02:58.5]} 11. b5 {[%clk 0:02:49.1]} 11...
axb5 {[%clk 0:02:59.4]} 12. axb5 {[%clk 0:02:49.6]} 12... d5 {[%clk 0:02:59.9]}
13. bxc6 {[%clk 0:02:49.5]} 13... bxc6 {[%clk 0:03:00.8]} 14. cxd5 {[%clk
0:02:50]} 14... cxd5 {[%clk 0:03:01.7]} 15. d4 {[%clk 0:02:22.9]} 15... e4
{[%clk 0:03:00.2]} 16. Ne5 {[%clk 0:02:22.3]} 16... Be6 {[%clk 0:03:00.9]} 17.
Bd2 {[%clk 0:02:12.1]} 17... Nbd7 {[%clk 0:02:59.1]} 18. Nxd7 {[%clk 0:02:11.9]}
18... Qxd7 {[%clk 0:02:58.1]} 19. Qc2 {[%clk 0:01:51.4]} 19... Rec8 {[%clk
0:02:56]} 20. Rfc1 {[%clk 0:01:52]} 20... Kh7 {[%clk 0:02:53.4]} 21. Qd1 {[%clk
0:01:50.8]} 21... h5 {[%clk 0:02:48.2]} 22. Bf4 {[%clk 0:01:49.7]} 22... h4
{[%clk 0:02:45.1]} 23. Be5 {[%clk 0:01:48.5]} 23... h3 {[%clk 0:02:44.6]} 24.
Bf1 {[%clk 0:01:48.5]} 24... Ng4 {[%clk 0:02:39.7]} 25. Bxg7 {[%clk 0:01:48]}
25... Kxg7 {[%clk 0:02:40.6]} 26. e3 {[%clk 0:01:42.1]} 26... Qd8 {[%clk
0:02:32.5]} 27. Na4 {[%clk 0:01:34.4]} 27... Rxc1 {[%clk 0:02:27.3]} 28. Rxc1
{[%clk 0:01:35.1]} 28... Qf6 {[%clk 0:02:27.6]} 29. Rc2 {[%clk 0:01:01.1]} 29...
Rxa4 {[%clk 0:02:23.8]} 30. Bxh3 {[%clk 0:01:01.4]} 30... Nxe3 {[%clk
0:02:22.5]} 31. fxe3 {[%clk 0:00:58.6]} 31... Bxh3 {[%clk 0:02:23]} 32. Rf2
{[%clk 0:00:59.3]} 32... Qa6 {[%clk 0:02:23.4]} 0-1

[Event "Late-Titled-Tuesday-Blitz-September-05-2023"]
[Site "Chess.com"]
[Date "2023.09.05"]
[Round "6"]
[White "ArtemDyachuk"]
[Black "Cmorales2001"]
[Result "1-0"]
[WhiteElo "2552"]
[BlackElo "2427"]
[TimeControl "180+1"]
[EndTime "15:04:07 PDT"]
[Termination "ArtemDyachuk won by checkmate"]

1. e4 {[%clk 0:03:00.9]} 1... c6 {[%clk 0:02:58.6]} 2. d4 {[%clk 0:02:59.5]}
2... d5 {[%clk 0:02:57.9]} 3. e5 {[%clk 0:02:59]} 3... Bf5 {[%clk 0:02:54.8]} 4.
Nf3 {[%clk 0:02:56.6]} 4... e6 {[%clk 0:02:52.7]} 5. Be2 {[%clk 0:02:56.8]} 5...
Bg6 {[%clk 0:02:52]} 6. O-O {[%clk 0:02:54.6]} 6... Qc7 {[%clk 0:02:52.6]} 7.
Nbd2 {[%clk 0:02:48.7]} 7... Nd7 {[%clk 0:02:53.1]} 8. Nb3 {[%clk 0:02:47.5]}
8... f6 {[%clk 0:02:49.7]} 9. Bf4 {[%clk 0:02:45.8]} 9... fxe5 {[%clk
0:02:47.7]} 10. dxe5 {[%clk 0:02:43]} 10... Ne7 {[%clk 0:02:46.8]} 11. Nbd4
{[%clk 0:02:39.2]} 11... Bf7 {[%clk 0:02:45.7]} 12. Ng5 {[%clk 0:02:39.3]} 12...
Nxe5 {[%clk 0:02:36.9]} 13. Nxf7 {[%clk 0:02:18.9]} 13... Kxf7 {[%clk
0:02:34.3]} 14. Bg4 {[%clk 0:02:19.1]} 14... Nf5 {[%clk 0:02:21.7]} 15. Nxe6
{[%clk 0:02:05.7]} 15... Kxe6 {[%clk 0:02:15.5]} 16. Re1 {[%clk 0:02:05.5]}
16... Bd6 {[%clk 0:02:15.6]} 17. Bxe5 {[%clk 0:02:03.6]} 17... Bxe5 {[%clk
0:02:15.7]} 18. f4 {[%clk 0:02:01.6]} 18... Kf7 {[%clk 0:02:06.7]} 19. Rxe5
{[%clk 0:01:55.8]} 19... Nd6 {[%clk 0:02:05.6]} 20. Be6+ {[%clk 0:01:52.6]}
20... Kf6 {[%clk 0:02:01.6]} 21. Qh5 {[%clk 0:01:51]} 21... g6 {[%clk
0:01:59.7]} 22. Qg5+ {[%clk 0:01:47.2]} 22... Kg7 {[%clk 0:01:59.4]} 23. f5
{[%clk 0:01:46.3]} 23... Rhf8 {[%clk 0:01:52.9]} 24. Rf1 {[%clk 0:01:37.3]}
24... Ne4 {[%clk 0:01:43.9]} 25. Qf4 {[%clk 0:01:28.1]} 25... Qb6+ {[%clk
0:01:40.7]} 26. Kh1 {[%clk 0:01:27.9]} 26... Kh8 {[%clk 0:01:39.1]} 27. Rxe4
{[%clk 0:01:27.2]} 27... dxe4 {[%clk 0:01:32.7]} 28. Qe5+ {[%clk 0:01:26.9]}
28... Rf6 {[%clk 0:01:33]} 29. Qxf6# {[%clk 0:01:27.8]} 1-0

[Event "Late-Titled-Tuesday-Blitz-September-05-2023"]
[Site "Chess.com"]
[Date "2023.09.05"]
[Round "6"]
[White "Langua_Chess"]
[Black "kaanadayhamle"]
[Result "1-0"]
[WhiteElo "2486"]
[BlackElo "2350"]
[TimeControl "180+1"]
[EndTime "15:04:13 PDT"]
[Termination "Langua_Chess won by checkmate"]

1. d4 {[%clk 0:03:00.9]} 1... Nf6 {[%clk 0:02:59.5]} 2. c4 {[%clk 0:03:01.5]}
2... e6 {[%clk 0:02:59.9]} 3. Nc3 {[%clk 0:03:02]} 3... d5 {[%clk 0:03:00.5]} 4.
cxd5 {[%clk 0:03:02]} 4... exd5 {[%clk 0:03:01.4]} 5. Bg5 {[%clk 0:03:02.3]}
5... Be7 {[%clk 0:03:01.8]} 6. e3 {[%clk 0:03:02.2]} 6... c6 {[%clk 0:03:02]} 7.
Bd3 {[%clk 0:03:02.6]} 7... Nbd7 {[%clk 0:03:02.5]} 8. Nge2 {[%clk 0:03:03]}
8... O-O {[%clk 0:03:03]} 9. O-O {[%clk 0:03:03.4]} 9... Re8 {[%clk 0:03:03.5]}
10. Qc2 {[%clk 0:03:03.5]} 10... h6 {[%clk 0:02:39.1]} 11. Bh4 {[%clk
0:03:03.6]} 11... Nf8 {[%clk 0:02:39.3]} 12. f3 {[%clk 0:02:56.5]} 12... Ne6
{[%clk 0:02:26.3]} 13. h3 {[%clk 0:02:51.5]} 13... a5 {[%clk 0:02:18.9]} 14. Bf2
{[%clk 0:02:43]} 14... g6 {[%clk 0:02:06.9]} 15. e4 {[%clk 0:02:21.5]} 15...
dxe4 {[%clk 0:02:06.5]} 16. fxe4 {[%clk 0:02:21.2]} 16... Ng7 {[%clk 0:02:07.1]}
17. Rad1 {[%clk 0:02:11.2]} 17... Be6 {[%clk 0:01:57.2]} 18. Nf4 {[%clk
0:01:55.8]} 18... g5 {[%clk 0:01:46.2]} 19. Nxe6 {[%clk 0:01:51.3]} 19... Nxe6
{[%clk 0:01:47.1]} 20. e5 {[%clk 0:01:44.3]} 20... Nd5 {[%clk 0:01:47]} 21. Nxd5
{[%clk 0:01:38.5]} 21... cxd5 {[%clk 0:01:43.8]} 22. Be3 {[%clk 0:01:28.5]}
22... Kg7 {[%clk 0:01:33.5]} 23. Qf2 {[%clk 0:01:28.2]} 23... Rf8 {[%clk
0:01:33.7]} 24. Qf5 {[%clk 0:01:26.9]} 24... Rh8 {[%clk 0:01:17.1]} 25. Qxf7#
{[%clk 0:01:25.2]} 1-0

[Event "Late-Titled-Tuesday-Blitz-September-05-2023"]
[Site "Chess.com"]
[Date "2023.09.05"]
[Round "6"]
[White "jjbolanos"]
[Black "rikchessmx"]
[Result "0-1"]
[WhiteElo "2077"]
[BlackElo "2394"]
[TimeControl "180+1"]
[EndTime "15:04:32 PDT"]
[Termination "rikchessmx won by resignation"]

1. e4 {[%clk 0:03:00.9]} 1... c5 {[%clk 0:02:55.3]} 2. Nf3 {[%clk 0:03:00.6]}
2... e6 {[%clk 0:02:56.2]} 3. d4 {[%clk 0:03:00.2]} 3... cxd4 {[%clk 0:02:57.1]}
4. Nxd4 {[%clk 0:03:00.4]} 4... a6 {[%clk 0:02:58]} 5. c4 {[%clk 0:03:00.6]}
5... Qc7 {[%clk 0:02:58.6]} 6. Nc3 {[%clk 0:03:00.6]} 6... Nf6 {[%clk
0:02:59.2]} 7. a3 {[%clk 0:02:50.6]} 7... h5 {[%clk 0:02:58.5]} 8. Be2 {[%clk
0:02:48.9]} 8... b6 {[%clk 0:02:56.6]} 9. O-O {[%clk 0:02:47]} 9... Bb7 {[%clk
0:02:55.8]} 10. f3 {[%clk 0:02:45.8]} 10... Bd6 {[%clk 0:02:54.7]} 11. h3 {[%clk
0:02:23.5]} 11... h4 {[%clk 0:02:50.8]} 12. Kh1 {[%clk 0:02:20.8]} 12... Nh5
{[%clk 0:02:50.7]} 13. Re1 {[%clk 0:02:12.2]} 13... Bg3 {[%clk 0:02:49.4]} 14.
Rf1 {[%clk 0:01:57.4]} 14... Be5 {[%clk 0:02:46.7]} 15. f4 {[%clk 0:01:26.7]}
15... Nxf4 {[%clk 0:01:37.1]} 16. Ndb5 {[%clk 0:01:22.2]} 16... axb5 {[%clk
0:01:32]} 17. Nxb5 {[%clk 0:01:22.4]} 17... Qc6 {[%clk 0:01:13.9]} 18. Bxf4
{[%clk 0:01:21.8]} 18... Qxe4 {[%clk 0:01:13]} 19. Bf3 {[%clk 0:01:20.2]} 19...
Qxf4 {[%clk 0:01:11.8]} 0-1

[Event "Late-Titled-Tuesday-Blitz-September-05-2023"]
[Site "Chess.com"]
[Date "2023.09.05"]
[Round "6"]
[White "YEIKO2017"]
[Black "CrushingKings"]
[Result "0-1"]
[WhiteElo "2423"]
[BlackElo "2541"]
[TimeControl "180+1"]
[EndTime "15:04:35 PDT"]
[Termination "CrushingKings won by resignation"]

1. e4 {[%clk 0:03:00.9]} 1... g6 {[%clk 0:02:52.2]} 2. d4 {[%clk 0:02:59.7]}
2... Bg7 {[%clk 0:02:53.1]} 3. Nc3 {[%clk 0:02:59.7]} 3... c6 {[%clk 0:02:54]}
4. Nf3 {[%clk 0:02:59]} 4... d5 {[%clk 0:02:54.9]} 5. Bf4 {[%clk 0:02:58.6]}
5... dxe4 {[%clk 0:02:54.3]} 6. Nxe4 {[%clk 0:02:58.5]} 6... Nf6 {[%clk
0:02:55.2]} 7. Nxf6+ {[%clk 0:02:56.9]} 7... exf6 {[%clk 0:02:56.1]} 8. Bc4
{[%clk 0:02:49.6]} 8... O-O {[%clk 0:02:56.4]} 9. O-O {[%clk 0:02:49]} 9... a5
{[%clk 0:02:57.1]} 10. a4 {[%clk 0:02:47.7]} 10... Na6 {[%clk 0:02:57.5]} 11. c3
{[%clk 0:02:47.7]} 11... Nc7 {[%clk 0:02:57]} 12. Qd2 {[%clk 0:02:46.6]} 12...
Nd5 {[%clk 0:02:57.3]} 13. Bh6 {[%clk 0:02:45.7]} 13... Bg4 {[%clk 0:02:57.1]}
14. Bxg7 {[%clk 0:02:44.5]} 14... Kxg7 {[%clk 0:02:58]} 15. Ne1 {[%clk
0:02:34.2]} 15... Re8 {[%clk 0:02:58]} 16. Nc2 {[%clk 0:02:33.6]} 16... Qd6
{[%clk 0:02:51.1]} 17. Ne3 {[%clk 0:02:25.5]} 17... Nxe3 {[%clk 0:02:46.1]} 18.
fxe3 {[%clk 0:02:24]} 18... Bf5 {[%clk 0:02:46.3]} 19. Rxf5 {[%clk 0:02:19.8]}
19... gxf5 {[%clk 0:02:46]} 20. Rf1 {[%clk 0:02:15.8]} 20... Re4 {[%clk
0:02:25.7]} 21. Rxf5 {[%clk 0:02:10.1]} 21... Rae8 {[%clk 0:02:26]} 22. Rf3
{[%clk 0:02:06.4]} 22... Qe7 {[%clk 0:02:06.6]} 23. Kf2 {[%clk 0:01:50.1]} 23...
Qd6 {[%clk 0:01:57.1]} 24. Rg3+ {[%clk 0:01:35.9]} 24... Kf8 {[%clk 0:01:55.5]}
25. Bd3 {[%clk 0:01:36.4]} 25... Rh4 {[%clk 0:01:55.1]} 26. Kg1 {[%clk
0:01:30.4]} 26... c5 {[%clk 0:01:52.9]} 27. Qf2 {[%clk 0:01:25.1]} 27... cxd4
{[%clk 0:01:47.1]} 28. exd4 {[%clk 0:01:17.2]} 28... Qf4 {[%clk 0:01:31.1]} 29.
Rf3 {[%clk 0:01:05.7]} 29... Qxh2+ {[%clk 0:01:31]} 0-1

[Event "Late-Titled-Tuesday-Blitz-September-05-2023"]
[Site "Chess.com"]
[Date "2023.09.05"]
[Round "6"]
[White "Bobbybunny"]
[Black "Akhayan"]
[Result "1-0"]
[WhiteElo "2215"]
[BlackElo "2349"]
[TimeControl "180+1"]
[EndTime "15:04:35 PDT"]
[Termination "Bobbybunny won by resignation"]

1. e4 {[%clk 0:02:55.6]} 1... e5 {[%clk 0:02:59.8]} 2. f4 {[%clk 0:02:54.7]}
2... Nc6 {[%clk 0:02:55]} 3. Nf3 {[%clk 0:02:53.9]} 3... f5 {[%clk 0:02:54.9]}
4. exf5 {[%clk 0:02:53.1]} 4... e4 {[%clk 0:02:53.1]} 5. Ne5 {[%clk 0:02:52]}
5... Nf6 {[%clk 0:02:50.2]} 6. d4 {[%clk 0:02:45.5]} 6... d6 {[%clk 0:02:39.9]}
7. Nxc6 {[%clk 0:02:40.9]} 7... bxc6 {[%clk 0:02:39.9]} 8. g4 {[%clk 0:02:40.2]}
8... Qe7 {[%clk 0:02:07.9]} 9. c4 {[%clk 0:02:35.9]} 9... Bd7 {[%clk 0:01:45.8]}
10. Nc3 {[%clk 0:02:34.8]} 10... O-O-O {[%clk 0:01:43.5]} 11. Be3 {[%clk
0:02:31.2]} 11... h5 {[%clk 0:01:42.3]} 12. Qa4 {[%clk 0:02:18.7]} 12... Kb8
{[%clk 0:01:35.1]} 13. d5 {[%clk 0:02:12.8]} 13... c5 {[%clk 0:01:34.5]} 14. Nb5
{[%clk 0:02:12.5]} 14... Bxb5 {[%clk 0:01:25]} 15. Qxb5+ {[%clk 0:02:11.5]}
15... Kc8 {[%clk 0:01:24]} 16. Qa6+ {[%clk 0:02:07.5]} 16... Kb8 {[%clk
0:01:22.3]} 17. Qb5+ {[%clk 0:01:55.6]} 17... Kc8 {[%clk 0:01:19.4]} 18. Qa6+
{[%clk 0:01:54.7]} 18... Kb8 {[%clk 0:01:19.7]} 19. b4 {[%clk 0:01:43.5]} 19...
Ka8 {[%clk 0:01:06.8]} 20. bxc5 {[%clk 0:01:34.3]} 20... Nd7 {[%clk 0:00:58.8]}
21. c6 {[%clk 0:01:17.1]} 1-0

[Event "Late-Titled-Tuesday-Blitz-September-05-2023"]
[Site "Chess.com"]
[Date "2023.09.05"]
[Round "6"]
[White "cande_francisco"]
[Black "Too_Stupid_To_Play"]
[Result "0-1"]
[WhiteElo "2548"]
[BlackElo "2289"]
[TimeControl "180+1"]
[EndTime "15:04:43 PDT"]
[Termination "Too_Stupid_To_Play won by resignation"]

1. e4 {[%clk 0:02:58.3]} 1... b6 {[%clk 0:03:00.9]} 2. d4 {[%clk 0:02:56.2]}
2... Bb7 {[%clk 0:03:01.8]} 3. Nc3 {[%clk 0:02:56.1]} 3... e6 {[%clk 0:03:01.5]}
4. f4 {[%clk 0:02:48.3]} 4... Bb4 {[%clk 0:03:01.7]} 5. Bd3 {[%clk 0:02:48.6]}
5... Nf6 {[%clk 0:03:01.8]} 6. Qe2 {[%clk 0:02:46.7]} 6... d5 {[%clk 0:03:02.3]}
7. e5 {[%clk 0:02:38.8]} 7... Ne4 {[%clk 0:03:02.2]} 8. Bxe4 {[%clk 0:02:16.6]}
8... dxe4 {[%clk 0:03:03.1]} 9. Be3 {[%clk 0:02:17]} 9... Qd5 {[%clk 0:02:48.4]}
10. a3 {[%clk 0:02:13.4]} 10... Bxc3+ {[%clk 0:02:45.3]} 11. bxc3 {[%clk
0:02:14.3]} 11... Ba6 {[%clk 0:02:45.6]} 12. Qg4 {[%clk 0:02:10.1]} 12... g6
{[%clk 0:02:45.7]} 13. h4 {[%clk 0:01:57.8]} 13... Qc4 {[%clk 0:02:41.1]} 14.
Kd2 {[%clk 0:01:53.5]} 14... h5 {[%clk 0:02:25.6]} 15. Qe2 {[%clk 0:01:34.8]}
15... Qa4 {[%clk 0:02:24.4]} 16. Qe1 {[%clk 0:01:29.9]} 16... Nc6 {[%clk
0:02:04.4]} 17. Bf2 {[%clk 0:01:18]} 17... Na5 {[%clk 0:02:04.1]} 18. Qxe4
{[%clk 0:01:17.3]} 18... Bb7 {[%clk 0:02:04.6]} 19. Qd3 {[%clk 0:01:09.6]} 19...
Bxg2 {[%clk 0:01:56.3]} 20. Rh2 {[%clk 0:01:09.2]} 20... Bd5 {[%clk 0:01:54.1]}
21. Nh3 {[%clk 0:00:55.9]} 21... Nc4+ {[%clk 0:01:51.9]} 22. Ke2 {[%clk
0:00:54.9]} 22... Nxe5 {[%clk 0:01:42]} 23. fxe5 {[%clk 0:00:31.7]} 23... Bc4
{[%clk 0:01:41.8]} 24. Ng5 {[%clk 0:00:32.5]} 24... Qxc2+ {[%clk 0:01:37]} 0-1

[Event "Late-Titled-Tuesday-Blitz-September-05-2023"]
[Site "Chess.com"]
[Date "2023.09.05"]
[Round "6"]
[White "Keaton87"]
[Black "Schwindle"]
[Result "1-0"]
[WhiteElo "2620"]
[BlackElo "2412"]
[TimeControl "180+1"]
[EndTime "15:04:47 PDT"]
[Termination "Keaton87 won by resignation"]

1. d4 {[%clk 0:03:00.9]} 1... Nf6 {[%clk 0:02:57.8]} 2. Bg5 {[%clk 0:03:00.6]}
2... d5 {[%clk 0:02:54.6]} 3. Nd2 {[%clk 0:02:59.5]} 3... Nbd7 {[%clk
0:02:51.8]} 4. Ngf3 {[%clk 0:02:56.3]} 4... e6 {[%clk 0:02:46.5]} 5. Ne5 {[%clk
0:02:53.8]} 5... Be7 {[%clk 0:02:44.1]} 6. e3 {[%clk 0:02:53.3]} 6... Nxe5
{[%clk 0:02:40.1]} 7. dxe5 {[%clk 0:02:52.8]} 7... Nd7 {[%clk 0:02:40.6]} 8.
Bxe7 {[%clk 0:02:52.8]} 8... Qxe7 {[%clk 0:02:40.1]} 9. f4 {[%clk 0:02:51.1]}
9... f6 {[%clk 0:02:35.5]} 10. exf6 {[%clk 0:02:50.5]} 10... Qxf6 {[%clk
0:02:33.2]} 11. c3 {[%clk 0:02:48.4]} 11... O-O {[%clk 0:02:23.6]} 12. Nf3
{[%clk 0:02:43.5]} 12... c6 {[%clk 0:02:21.4]} 13. Bd3 {[%clk 0:02:42.4]} 13...
e5 {[%clk 0:02:19]} 14. fxe5 {[%clk 0:02:38]} 14... Nxe5 {[%clk 0:02:18.6]} 15.
O-O {[%clk 0:02:32.6]} 15... Bg4 {[%clk 0:01:49.6]} 16. Be2 {[%clk 0:02:31]}
16... Bxf3 {[%clk 0:01:40.9]} 17. Bxf3 {[%clk 0:02:31]} 17... Qg5 {[%clk
0:01:36]} 18. Qe2 {[%clk 0:02:23.4]} 18... Rae8 {[%clk 0:01:30.1]} 19. Rae1
{[%clk 0:02:22.9]} 19... Rf6 {[%clk 0:01:08.9]} 20. Rf2 {[%clk 0:02:18.6]} 20...
Ref8 {[%clk 0:00:52.7]} 21. Ref1 {[%clk 0:02:18.6]} 21... Nc4 {[%clk 0:00:41.1]}
22. Re1 {[%clk 0:02:05.7]} 22... Ne5 {[%clk 0:00:39.9]} 23. Ref1 {[%clk
0:02:04.6]} 23... Nc4 {[%clk 0:00:38.7]} 24. e4 {[%clk 0:01:57.6]} 24... Nd2
{[%clk 0:00:36.8]} 25. Qxd2 {[%clk 0:01:55.1]} 25... Qxd2 {[%clk 0:00:35.7]} 26.
Rxd2 {[%clk 0:01:55]} 26... dxe4 {[%clk 0:00:36.6]} 27. Be2 {[%clk 0:01:47.2]}
27... e3 {[%clk 0:00:35.1]} 28. Rxf6 {[%clk 0:01:41.2]} 28... Rxf6 {[%clk
0:00:34.6]} 29. Rd3 {[%clk 0:01:41.1]} 1-0